fUST/lending_fUST_20250810
["ID","MTS","AMOUNT","RATE_DAILY","PERIOD"]
[378177634,1754766640387,-460.0,0.00021796,2]
[378177635,1754766640396,-460.0,0.00021796,2]
[378177636,1754766640406,-460.0,0.00021796,2]
[378177637,1754766640416,-460.0,0.00021796,2]
[378177638,1754766640426,-499.4,0.00021796,2]
[378177640,1754766640436,-460.0,0.00021796,2]
[378177642,1754766640446,-429.25990695,0.00021796,2]
[378177644,1754766640456,-460.0,0.00021796,2]
[378177646,1754766640467,-429.24,0.00021796,2]
[378177648,1754766640477,-460.0,0.00021796,2]
[378177650,1754766640489,-460.0,0.00021796,2]
[378177652,1754766640500,-521.53,0.00021796,2]
[378177654,1754766640509,-460.0,0.00021797,2]
[378177656,1754766640519,-460.0,0.00021797,2]
[378177657,1754766640530,-460.0,0.00021797,2]
[378177658,1754766640542,-460.0,0.00021797,2]
[378177659,1754766640552,-460.0,0.00021797,2]
[378177661,1754766640562,-460.0,0.00021797,2]
[378177662,1754766640572,-586.07,0.00021797,2]
[378177663,1754766640582,-460.0,0.00021797,2]
[378177664,1754766640592,-558.36,0.00021797,2]
[378177665,1754766640602,-249.41532941,0.00021797,2]
[378177666,1754766640613,-1639.56,0.00021797,2]
[378177667,1754766640623,-460.0,0.00021797,2]
[378177668,1754766640634,-460.0,0.00021797,2]
[378177669,1754766640644,-460.0,0.00021797,2]
[378177670,1754766640654,-460.0,0.00021797,2]
[378177671,1754766640663,-460.0,0.00021797,2]
[378177672,1754766640674,-460.0,0.00021797,2]
[378177673,1754766640683,-460.0,0.00021797,2]
[378177674,1754766640695,-460.0,0.00021797,2]
[378177675,1754766640705,-460.0,0.00021797,2]
[378177676,1754766640715,-858.86,0.00021797,2]
[378177677,1754766640725,-460.0,0.00021797,2]
[378177678,1754766640739,-460.0,0.00021797,2]
[378177679,1754766640757,-460.0,0.00021797,2]
[378177680,1754766640767,-460.0,0.00021797,2]
[378177681,1754766640779,-460.0,0.00021797,2]
[378177682,1754766640790,-460.0,0.00021797,2]
[378177683,1754766640801,-460.0,0.00021797,2]
[378177684,1754766640811,-460.0,0.00021797,2]
[378177685,1754766640822,-460.0,0.00021797,2]
[378177686,1754766640832,-460.0,0.00021797,2]
[378177687,1754766640843,-638.58,0.00021797,2]
[378177688,1754766640853,-460.0,0.00021797,2]
[378177689,1754766640863,-520.14,0.00021797,2]
[378177690,1754766640873,-476.69,0.00021797,2]
[378177691,1754766641063,-460.0,0.00021797,2]
[378177692,1754766641073,-460.0,0.00021797,2]
[378177693,1754766641083,-460.0,0.00021797,2]
[378177694,1754766641093,-460.0,0.00021797,2]
[378177695,1754766641103,-460.0,0.00021797,2]
[378177696,1754766641113,-460.0,0.00021797,2]
[378177697,1754766641123,-460.0,0.00021797,2]
[378177698,1754766641132,-460.0,0.00021798,2]
[378177699,1754766641142,-460.0,0.00021798,2]
[378177700,1754766641152,-460.0,0.00021798,2]
[378177701,1754766641162,-460.0,0.00021798,2]
[378177702,1754766641171,-460.0,0.00021798,2]
[378177703,1754766641181,-460.0,0.00021798,2]
[378177704,1754766641192,-460.0,0.00021798,2]
[378177705,1754766641202,-460.0,0.00021798,2]
[378177706,1754766641212,-460.0,0.00021798,2]
[378177707,1754766641222,-460.0,0.00021798,2]
[378177708,1754766641232,-460.0,0.00021798,2]
[378177709,1754766641244,-460.0,0.00021798,2]
[378177710,1754766641254,-562.86,0.00021798,2]
[378177711,1754766641263,-460.0,0.00021798,2]
[378177712,1754766641273,-460.0,0.00021798,2]
[378177713,1754766641282,-460.0,0.00021798,2]
[378177714,1754766641291,-460.0,0.00021798,2]
[378177715,1754766641302,-460.0,0.00021798,2]
[378177716,1754766641312,-460.0,0.00021798,2]
[378177717,1754766641321,-460.0,0.00021799,2]
[378177718,1754766641330,-460.0,0.00021799,2]
[378177719,1754766641340,-460.0,0.00021799,2]
[378177720,1754766641349,-500.0,0.00021917,2]
[378177721,1754766641359,-662.34,0.00021917,2]
[378177722,1754766641368,-200.0,0.00021951,15]
[378177723,1754766641378,-200.0,0.00021951,15]
[378177724,1754766641388,-200.0,0.00021951,15]
[378177725,1754766641401,-200.0,0.00021951,15]
[378177726,1754766641410,-200.0,0.00021951,15]
[378177727,1754766641420,-369.31,0.00022,2]
[378177728,1754766641429,-166.27,0.00022061,3]
[378177729,1754766641439,-498.81,0.00022061,3]
[378177730,1754766641448,-561.72,0.00022063,3]
[378177731,1754766641457,-381.90418189,0.0002207,2]
[378177732,1754766641466,-940.01,0.0002207,2]
[378177733,1754766641476,-495.9,0.0002207,2]
[378177734,1754766641488,-460.0,0.0002207,2]
[378177735,1754766641497,-1040.68,0.0002207,2]
[378177736,1754766641507,-887.95,0.0002207,2]
[378177737,1754766641516,-460.0,0.0002207,2]
[378177738,1754766641525,-460.0,0.0002207,2]
[378177739,1754766641534,-499.4,0.0002207,2]
[378177740,1754766641544,-460.0,0.0002207,2]
[378177741,1754766641556,-460.0,0.0002207,2]
[378177742,1754766641566,-460.0,0.0002207,2]
[378177743,1754766641575,-460.0,0.0002207,2]
[378177744,1754766641586,-521.53,0.0002207,2]
[378177745,1754766641595,-460.0,0.00022071,2]
[378177746,1754766641604,-460.0,0.00022071,2]
[378177747,1754766641614,-460.0,0.00022071,2]
[378177748,1754766641624,-460.0,0.00022071,2]
[378177749,1754766641633,-586.07,0.00022071,2]
[378177750,1754766641643,-558.36,0.00022071,2]
[378177751,1754766641652,-1639.56,0.00022071,2]
[378177752,1754766641661,-502.64,0.00022071,2]
[378177753,1754766641671,-460.0,0.00022071,2]
[378177754,1754766641680,-460.0,0.00022071,2]
[378177755,1754766641690,-460.0,0.00022071,2]
[378177756,1754766641700,-460.0,0.00022071,2]
[378177757,1754766641709,-460.0,0.00022071,2]
[378177758,1754766641718,-544.89,0.00022071,2]
[378177759,1754766641728,-460.0,0.00022071,2]
[378177760,1754766641738,-858.86,0.00022071,2]
[378177761,1754766641747,-460.0,0.00022071,2]
[378177762,1754766641757,-170.52,0.00022071,2]
[378177763,1754766641766,-460.0,0.00022071,2]
[378177764,1754766641776,-460.0,0.00022071,2]
[378177765,1754766641786,-331.11179119,0.00022071,2]
[378177766,1754766641796,-638.58,0.00022071,2]
[378177767,1754766641806,-520.14,0.00022071,2]
[378177768,1754766641816,-476.69,0.00022071,2]
[378177769,1754766641825,-460.0,0.00022071,2]
[378177770,1754766641835,-460.0,0.00022071,2]
[378177771,1754766641845,-460.0,0.00022071,2]
[378177772,1754766641854,-460.0,0.00022071,2]
[378177773,1754766641864,-460.0,0.00022071,2]
[378177774,1754766641874,-472.13,0.00022072,2]
[378177775,1754766641883,-460.0,0.00022072,2]
[378177776,1754766641893,-460.0,0.00022072,2]
[378177777,1754766641903,-460.0,0.00022072,2]
[378177778,1754766641913,-460.0,0.00022072,2]
[378177779,1754766641922,-460.0,0.00022072,2]
[378177780,1754766641932,-562.86,0.00022072,2]
[378177781,1754766641942,-460.0,0.00022072,2]
[378177782,1754766641952,-460.0,0.00022072,2]
[378177783,1754766641962,-460.0,0.00022072,2]
[378177784,1754766641972,-246.76763945,0.00022161,2]
[378177785,1754766641981,-508.19232228,0.00022245,2]
[378177786,1754766641994,-940.01,0.00022344,2]
[378177787,1754766642003,-495.9,0.00022344,2]
[378177788,1754766642012,-460.0,0.00022344,2]
[378177789,1754766642022,-1040.68,0.00022344,2]
[378177790,1754766642031,-887.95,0.00022344,2]
[378177791,1754766642042,-166.17,0.00022344,2]
[378177792,1754766642051,-460.0,0.00022344,2]
[378177793,1754766642061,-499.4,0.00022344,2]
[378177794,1754766642071,-460.0,0.00022344,2]
[378177795,1754766642080,-451.74252648,0.00022344,2]
[378177796,1754766642090,-559.03526524,0.00022344,2]
[378177797,1754766642099,-460.0,0.00022344,2]
[378177798,1754766642109,-521.53,0.00022344,2]
[378177799,1754766642119,-460.0,0.00022345,2]
[378177800,1754766642128,-460.0,0.00022345,2]
[378177801,1754766642138,-460.0,0.00022345,2]
[378177802,1754766642162,-460.0,0.00022345,2]
[378177803,1754766642174,-586.07,0.00022345,2]
[378177804,1754766642185,-558.36,0.00022345,2]
[378177805,1754766642195,-1639.56,0.00022345,2]
[378177806,1754766642206,-460.0,0.00022345,2]
[378177807,1754766642216,-481.05,0.00022345,2]
[378177808,1754766642226,-460.0,0.00022345,2]
[378177809,1754766642238,-460.0,0.00022345,2]
[378177810,1754766642249,-460.0,0.00022345,2]
[378177811,1754766642259,-460.0,0.00022345,2]
[378177812,1754766642269,-858.86,0.00022345,2]
[378177813,1754766642279,-460.0,0.00022345,2]
[378177814,1754766642290,-460.0,0.00022345,2]
[378177815,1754766642300,-638.58,0.00022345,2]
[378177816,1754766642310,-520.14,0.00022345,2]
[378177817,1754766642320,-476.69,0.00022345,2]
[378177818,1754766642330,-460.0,0.00022345,2]
[378177819,1754766642340,-161.93458878,0.00022345,2]
[378177820,1754766642350,-460.0,0.00022345,2]
[378177821,1754766642360,-460.0,0.00022345,2]
[378177822,1754766642370,-460.0,0.00022345,2]
[378177823,1754766642379,-460.0,0.00022346,2]
[378177824,1754766642390,-493.54,0.00022346,2]
[378177825,1754766642400,-460.0,0.00022346,2]
[378177826,1754766642409,-460.0,0.00022346,2]
[378177827,1754766642419,-562.86,0.00022346,2]
[378177828,1754766642430,-232.83950658,0.00022346,2]
[378177829,1754766642440,-460.0,0.00022346,2]
[378177830,1754766642450,-160.0,0.00022499,2]
[378177831,1754766642460,-160.0,0.00022499,2]
[378177832,1754766642470,-160.0,0.00022499,2]
[378177833,1754766642480,-461.55179734,0.00022499,2]
[378177834,1754766642492,-842.95011917,0.00022499,2]
[378177835,1754766642502,-160.0,0.00022499,2]
[378177836,1754766642511,-312.16666667,0.00022499,2]
[378177837,1754766642521,-231.92402426,0.00022499,2]
[378177838,1754766642531,-215.40758176,0.00022499,2]
[378177839,1754766642544,-527.77735381,0.00022499,2]
[378177840,1754766642554,-216.61183532,0.00022499,2]
[378177841,1754766642563,-160.0,0.00022499,2]
[378177842,1754766642574,-160.0,0.00022499,2]
[378177843,1754766642585,-12666.14847857,0.00022499,2]
[378177844,1754766642595,-160.0,0.000225,2]
[378177845,1754766642605,-940.01,0.00022618,2]
[378177846,1754766642615,-495.9,0.00022618,2]
[378177847,1754766642626,-498.01,0.00022618,2]
[378177848,1754766642636,-1040.68,0.00022618,2]
[378177849,1754766642646,-887.95,0.00022618,2]
[378177850,1754766642655,-460.0,0.00022618,2]
[378177851,1754766642665,-460.0,0.00022618,2]
[378177852,1754766642676,-499.4,0.00022618,2]
[378177853,1754766642693,-460.0,0.00022618,2]
[378177854,1754766642717,-521.53,0.00022618,2]
[378177855,1754766642728,-460.0,0.00022619,2]
[378177856,1754766642738,-460.0,0.00022619,2]
[378177857,1754766642748,-460.0,0.00022619,2]
[378177858,1754766642758,-460.0,0.00022619,2]
[378177859,1754766642769,-586.07,0.00022619,2]
[378177860,1754766642779,-558.36,0.00022619,2]
[378177861,1754766642789,-1639.56,0.00022619,2]
[378177862,1754766642799,-460.0,0.00022619,2]
[378177863,1754766642809,-460.0,0.00022619,2]
[378177864,1754766642818,-460.0,0.00022619,2]
[378177865,1754766642827,-460.0,0.00022619,2]
[378177866,1754766642837,-858.86,0.00022619,2]
[378177867,1754766642847,-460.0,0.00022619,2]
[378177868,1754766642856,-460.0,0.00022619,2]
[378177869,1754766642867,-638.58,0.00022619,2]
[378177870,1754766642878,-520.14,0.00022619,2]
[378177871,1754766642888,-476.69,0.00022619,2]
[378177872,1754766642899,-460.0,0.00022619,2]
[378177873,1754766642909,-460.0,0.00022619,2]
[378177874,1754766642918,-460.0,0.00022619,2]
[378177875,1754766642928,-460.0,0.0002262,2]
[378177876,1754766642938,-219.33737386,0.0002262,2]
[378177877,1754766642948,-460.0,0.0002262,2]
[378177878,1754766642958,-562.86,0.0002262,2]
[378177879,1754766642967,-460.0,0.0002262,2]
[378177880,1754766642977,-367.81,0.00022755,2]
[378177881,1754766642988,-536.7735581,0.00022863,2]
[378177882,1754766642998,-508.19232225,0.00022885,2]
[378177883,1754766643008,-940.01,0.00022892,2]
[378177884,1754766643018,-495.9,0.00022892,2]
[378177885,1754766643028,-1040.68,0.00022892,2]
[378177886,1754766643038,-887.95,0.00022892,2]
[378177887,1754766643047,-460.0,0.00022892,2]
[378177888,1754766643057,-460.0,0.00022892,2]
[378177889,1754766643066,-499.4,0.00022892,2]
[378177891,1754766643076,-460.0,0.00022892,2]
[378177892,1754766643087,-521.53,0.00022892,2]
[378177893,1754766643097,-460.0,0.00022893,2]
[378177894,1754766643107,-460.0,0.00022893,2]
[378177896,1754766643116,-586.07,0.00022893,2]
[378177897,1754766643126,-558.36,0.00022893,2]
[378177898,1754766643136,-1639.56,0.00022893,2]
[378177899,1754766643146,-511.27525804,0.00022893,2]
[378177900,1754766643155,-460.0,0.00022893,2]
[378177902,1754766643166,-460.0,0.00022893,2]
[378177903,1754766643176,-460.0,0.00022893,2]
[378177904,1754766643185,-858.86,0.00022893,2]
[378177905,1754766643195,-234.02,0.00022893,2]
[378177906,1754766643204,-460.0,0.00022893,2]
[378177907,1754766643215,-638.58,0.00022893,2]
[378177909,1754766643225,-520.14,0.00022893,2]
[378177910,1754766643235,-476.69,0.00022893,2]
[378177912,1754766643246,-460.0,0.00022893,2]
[378177913,1754766643256,-460.0,0.00022893,2]
[378177914,1754766643265,-724.82400361,0.00022893,2]
[378177915,1754766643275,-271.00252423,0.00022893,2]
[378177916,1754766643285,-724.82400361,0.00022893,2]
[378177917,1754766643295,-724.82400361,0.00022893,2]
[378177918,1754766643305,-724.82400361,0.00022893,2]
[378177919,1754766643315,-724.82400361,0.00022893,2]
[378177920,1754766643324,-724.82400361,0.00022893,2]
[378177921,1754766643333,-724.82400361,0.00022893,2]
[378177922,1754766643343,-724.82400361,0.00022893,2]
[378177923,1754766643352,-724.82400361,0.00022893,2]
[378177924,1754766643361,-724.82400361,0.00022893,2]
[378177925,1754766643370,-724.82400361,0.00022893,2]
[378177926,1754766643380,-724.82400361,0.00022893,2]
[378177927,1754766643389,-724.82400361,0.00022893,2]
[378177928,1754766643399,-724.82400361,0.00022893,2]
[378177929,1754766643408,-724.82400361,0.00022893,2]
[378177930,1754766643417,-724.82400361,0.00022893,2]
[378177931,1754766643427,-724.82400361,0.00022893,2]
[378177933,1754766643436,-724.82400361,0.00022893,2]
[378177935,1754766643446,-724.82400361,0.00022893,2]
[378177936,1754766643455,-724.82400361,0.00022893,2]
[378177937,1754766643465,-724.82400361,0.00022893,2]
[378177938,1754766643476,-460.0,0.00022894,2]
[378177939,1754766643486,-460.0,0.00022894,2]
[378177940,1754766643497,-562.86,0.00022894,2]
[378177941,1754766643506,-460.0,0.00022894,2]
[378177942,1754766643517,-154.772985,0.00022898,14]
[378177943,1754766643527,-160.0,0.00023,2]
[378177944,1754766643537,-940.01,0.00023166,2]
[378177946,1754766643547,-495.9,0.00023166,2]
[378177947,1754766643559,-1040.68,0.00023166,2]
[378177948,1754766643569,-887.95,0.00023166,2]
[378177949,1754766643580,-460.0,0.00023166,2]
[378177950,1754766643590,-325.0235306,0.00023166,2]
[378177951,1754766643600,-499.4,0.00023166,2]
[378177952,1754766643609,-460.0,0.00023166,2]
[378177953,1754766643620,-521.53,0.00023166,2]
[378177954,1754766643630,-460.0,0.00023167,2]
[378177955,1754766643641,-460.0,0.00023167,2]
[378177956,1754766643650,-586.07,0.00023167,2]
[378177957,1754766643659,-558.36,0.00023167,2]
[378177958,1754766643669,-1639.56,0.00023167,2]
[378177960,1754766643678,-460.0,0.00023167,2]
[378177962,1754766643687,-460.0,0.00023167,2]
[378177963,1754766643696,-460.0,0.00023167,2]
[378177964,1754766643706,-858.86,0.00023167,2]
[378177965,1754766643716,-460.0,0.00023167,2]
[378177966,1754766643726,-638.58,0.00023167,2]
[378177967,1754766643735,-520.14,0.00023167,2]
[378177968,1754766643745,-476.69,0.00023167,2]
[378177969,1754766643755,-460.0,0.00023167,2]
[378177970,1754766643765,-556.1416523,0.00023167,2]
[378177971,1754766643775,-460.0,0.00023168,2]
[378177972,1754766643784,-460.0,0.00023168,2]
[378177973,1754766643793,-562.86,0.00023168,2]
[378177975,1754766643803,-460.0,0.00023168,2]
[378177976,1754766643813,-369.31,0.000232,2]
[378177977,1754766643822,-500.0,0.00023289,2]
[378177978,1754766643832,-160.0,0.00023318,2]
[378177979,1754766643842,-154.772985,0.00023345,10]
[378177980,1754766643851,-420.0,0.00023398,2]
[378177981,1754766643861,-6846.09731121,0.00023405,2]
[378177982,1754766643871,-8592.1248774,0.00023409,2]
[378177983,1754766643881,-498.8,0.00023431,3]
[378177984,1754766643891,-332.54,0.00023431,3]
[378177985,1754766643901,-565.9898197,0.00023435,2]
[378177986,1754766643910,-500.0,0.00023435,2]
[378177987,1754766643919,-500.0,0.00023435,2]
[378177988,1754766643930,-940.01,0.0002344,2]
[378177989,1754766643939,-495.9,0.0002344,2]
[378177990,1754766643949,-1040.68,0.0002344,2]
[378177991,1754766643958,-887.95,0.0002344,2]
[378177992,1754766643968,-460.0,0.0002344,2]
[378177993,1754766643977,-499.4,0.0002344,2]
[378177994,1754766643988,-460.0,0.0002344,2]
[378177995,1754766643997,-521.53,0.0002344,2]
[378177996,1754766644008,-200.0,0.00023441,10]
[378177997,1754766644018,-200.0,0.00023441,10]
[378177998,1754766644027,-200.0,0.00023441,10]
[378177999,1754766644037,-460.0,0.00023441,2]
[378178000,1754766644047,-460.0,0.00023441,2]
[378178001,1754766644058,-586.07,0.00023441,2]
[378178002,1754766644068,-558.36,0.00023441,2]
[378178003,1754766644078,-1639.56,0.00023441,2]
[378178004,1754766644088,-460.0,0.00023441,2]
[378178005,1754766644097,-460.0,0.00023441,2]
[378178006,1754766644254,-460.0,0.00023441,2]
[378178007,1754766644264,-858.86,0.00023441,2]
[378178008,1754766644274,-460.0,0.00023441,2]
[378178009,1754766644283,-638.58,0.00023441,2]
[378178010,1754766644293,-520.14,0.00023441,2]
[378178011,1754766644302,-476.69,0.00023441,2]
[378178012,1754766644312,-460.0,0.00023441,2]
[378178013,1754766644322,-460.0,0.00023442,2]
[378178014,1754766644331,-460.0,0.00023442,2]
[378178015,1754766644340,-562.86,0.00023442,2]
[378178016,1754766644350,-460.0,0.00023442,2]
[378178017,1754766644359,-151.0,0.00023505,2]
[378178018,1754766644369,-151.0,0.00023505,2]
[378178019,1754766644379,-151.0,0.00023505,2]
[378178020,1754766644388,-151.0,0.00023505,2]
[378178021,1754766644397,-151.0,0.00023505,2]
[378178022,1754766644407,-151.0,0.00023505,2]
[378178023,1754766644416,-151.0,0.00023505,2]
[378178024,1754766644425,-151.0,0.00023505,2]
[378178025,1754766644434,-151.0,0.00023505,2]
[378178026,1754766644444,-151.0,0.00023505,2]
[378178027,1754766644454,-151.0,0.00023505,2]
[378178028,1754766644463,-151.0,0.00023505,2]
[378178029,1754766644472,-151.0,0.00023505,2]
[378178030,1754766644482,-238.85598022,0.00023505,2]
[378178031,1754766644492,-151.0,0.00023505,2]
[378178032,1754766644501,-151.0,0.00023505,2]
[378178033,1754766644511,-151.0,0.00023505,2]
[378178034,1754766644520,-151.0,0.00023505,2]
[378178035,1754766644530,-151.0,0.00023505,2]
[378178036,1754766644541,-151.0,0.00023505,2]
[378178037,1754766644551,-151.0,0.00023505,2]
[378178038,1754766644560,-151.0,0.00023505,2]
[378178039,1754766644570,-151.0,0.00023505,2]
[378178040,1754766644580,-151.0,0.00023505,2]
[378178041,1754766644589,-250.0,0.00023505,2]
[378178042,1754766644599,-284.47548457,0.00023505,2]
[378178043,1754766644609,-250.0,0.00023505,2]
[378178044,1754766644621,-250.0,0.00023505,2]
[378178045,1754766644630,-250.0,0.00023505,2]
[378178046,1754766644641,-250.0,0.00023505,2]
[378178047,1754766644650,-300.0,0.00023505,2]
[378178048,1754766644659,-250.0,0.00023505,2]
[378178049,1754766644668,-300.0,0.00023505,2]
[378178050,1754766644677,-250.0,0.00023505,2]
[378178051,1754766644687,-250.0,0.00023505,2]
[378178052,1754766644696,-250.0,0.00023505,2]
[378178053,1754766644705,-300.0,0.00023505,2]
[378178054,1754766644715,-250.0,0.00023505,2]
[378178055,1754766644725,-300.0,0.00023505,2]
[378178056,1754766644735,-250.0,0.00023505,2]
[378178057,1754766644747,-300.0,0.00023505,2]
[378178058,1754766644757,-250.0,0.00023505,2]
[378178059,1754766644767,-300.0,0.00023505,2]
[378178060,1754766644777,-151.0,0.00023505,2]
[378178061,1754766644786,-151.0,0.00023505,2]
[378178062,1754766644797,-151.0,0.00023505,2]
[378178063,1754766644807,-250.0,0.00023505,2]
[378178064,1754766644816,-151.0,0.00023505,2]
[378178065,1754766644826,-151.0,0.00023505,2]
[378178066,1754766644839,-151.0,0.00023505,2]
[378178067,1754766644849,-151.0,0.00023505,2]
[378178068,1754766644863,-151.0,0.00023505,2]
[378178069,1754766644873,-151.0,0.00023505,2]
[378178070,1754766644883,-151.0,0.00023505,2]
[378178071,1754766644893,-151.0,0.00023505,2]
[378178072,1754766644903,-151.0,0.00023505,2]
[378178073,1754766644913,-151.0,0.00023505,2]
[378178074,1754766644924,-1680.0,0.00023508,2]
[378178075,1754766644934,-508.19232225,0.00023524,2]
[378178076,1754766644943,-200.0,0.00023563,29]
[378178077,1754766644953,-151.0,0.000236,10]
[378178078,1754766644963,-940.01,0.00023714,2]
[378178079,1754766644972,-495.9,0.00023714,2]
[378178080,1754766644982,-1040.68,0.00023714,2]
[378178081,1754766644993,-887.95,0.00023714,2]
[378178082,1754766645003,-460.0,0.00023714,2]
[378178083,1754766645012,-499.4,0.00023714,2]
[378178084,1754766645022,-460.0,0.00023714,2]
[378178085,1754766645032,-521.53,0.00023714,2]
[378178086,1754766645042,-460.0,0.00023715,2]
[378178087,1754766645052,-346.82297436,0.00023715,2]
[378178088,1754766645062,-586.07,0.00023715,2]
[378178089,1754766645083,-558.36,0.00023715,2]
[378178090,1754766645099,-1639.56,0.00023715,2]
[378178091,1754766645108,-460.0,0.00023715,2]
[378178092,1754766645118,-460.0,0.00023715,2]
[378178093,1754766645128,-460.0,0.00023715,2]
[378178094,1754766645139,-858.86,0.00023715,2]
[378178095,1754766645149,-460.0,0.00023715,2]
[378178096,1754766645159,-638.58,0.00023715,2]
[378178097,1754766645169,-520.14,0.00023715,2]
[378178098,1754766645179,-476.69,0.00023715,2]
[378178099,1754766645189,-460.0,0.00023715,2]
[378178100,1754766645199,-460.0,0.00023716,2]
[378178101,1754766645208,-460.0,0.00023716,2]
[378178102,1754766645219,-562.86,0.00023716,2]
[378178103,1754766645228,-460.0,0.00023716,2]
[378178104,1754766645238,-1788.92,0.0002376,2]
[378178105,1754766645248,-954.87048646,0.00023837,2]
[378178106,1754766645258,-154.772985,0.00023846,14]
[378178107,1754766645269,-260.0,0.00023866,2]
[378178108,1754766645278,-151.0,0.000239,5]
[378178109,1754766645288,-150.0,0.00023939,2]
[378178110,1754766645298,-154.772985,0.00023978,2]
[378178111,1754766645308,-1000.0,0.00023983,2]
[378178112,1754766645317,-940.01,0.00023988,2]
[378178113,1754766645328,-495.9,0.00023988,2]
[378178114,1754766645337,-1040.68,0.00023988,2]
[378178115,1754766645347,-887.95,0.00023988,2]
[378178116,1754766645357,-460.0,0.00023988,2]
[378178117,1754766645367,-499.4,0.00023988,2]
[378178118,1754766645377,-460.0,0.00023988,2]
[378178119,1754766645387,-521.53,0.00023988,2]
[378178120,1754766645396,-460.0,0.00023989,2]
[378178121,1754766645406,-586.07,0.00023989,2]
[378178122,1754766645415,-558.36,0.00023989,2]
[378178123,1754766645425,-1639.56,0.00023989,2]
[378178124,1754766645435,-460.0,0.00023989,2]
[378178125,1754766645444,-460.0,0.00023989,2]
[378178126,1754766645453,-460.0,0.00023989,2]
[378178127,1754766645463,-858.86,0.00023989,2]
[378178128,1754766645473,-167.7939414,0.00023989,2]
[378178129,1754766645482,-638.58,0.00023989,2]
[378178130,1754766645492,-520.14,0.00023989,2]
[378178131,1754766645502,-476.69,0.00023989,2]
[378178132,1754766645511,-460.0,0.00023989,2]
[378178133,1754766645520,-460.0,0.0002399,2]
[378178134,1754766645530,-460.0,0.0002399,2]
[378178135,1754766645540,-562.86,0.0002399,2]
[378178136,1754766645553,-460.0,0.0002399,2]
[378178137,1754766645564,-154.772985,0.00024018,10]
[378178138,1754766645574,-200.0,0.00024093,15]
[378178139,1754766645584,-200.0,0.00024093,15]
[378178140,1754766645594,-200.0,0.00024093,15]
[378178141,1754766645604,-200.0,0.00024093,15]
[378178142,1754766645614,-200.0,0.00024093,15]
[378178143,1754766645625,-200.0,0.00024093,15]
[378178144,1754766645636,-200.0,0.00024093,15]
[378178145,1754766645646,-151.0,0.000241,8]
[378178146,1754766645656,-243.37969701,0.00024152,2]
[378178147,1754766645665,-508.19232225,0.00024164,2]
[378178148,1754766645675,-447.001176,0.00024165,2]
[378178149,1754766645684,-6846.0973112,0.0002421,2]
[378178150,1754766645699,-681.0,0.00024212,2]
[378178151,1754766645712,-559.0,0.00024227,2]
[378178152,1754766645726,-940.01,0.00024262,2]
[378178153,1754766645740,-495.9,0.00024262,2]
[378178154,1754766645752,-1040.68,0.00024262,2]